Workbook

Sheet Sheet1
A1: Placements Status of GPW Faridabad for Batch 2017-20 (as on dated 31.12.2020)
A2: Name of Principal: | B2: Smt. Meenu Verma | D2: Contact No.: | E2: 9910153115 | G2: E-Mail ID: | H2: gpwfaridabad@hry.nic.in
A3: Name of TPO: | B3: Padam Singh | D3: Contact No.: | E3: 9250963647 | G3: E-Mail ID: | H3: tpogpwfaridabad@gmail.com
A4: Name of Institute | B4: Branch / Discipline | C4: No. of Students Enrolled (2020 passing out batch) (A) | D4: No. of Students eligible (all clear) (B) | E4: Eligible %age (C) | F4: No. of students placed out of eligible students (D) | G4: %age of Placement (E) | H4: No. of students shortlisted (confirmation awaited) (F) | I4: No. of students of 2020 batch placed though having reappears (G) | J4: Tentative no. of Students opting for higher education (H) | K4: No. of students placed in 2020 out of previous batches (I) | L4: % of Placement out of interested eligible (J)= (D+H)/B*100
A5: Govt. Polytechnic for Women, Faridabad | B5: Mech | C5: 38 | D5: 14 | E5: =D5/C5*100 -> 36.84 | F5: 10 | G5: =F5/D5*100 -> 71.43 | H5: 0 | I5: 9 | J5: 4 | K5: 6 | L5: 100
B6: Civil | C6: 37 | D6: 7 | E6: =D6/C6*100 -> 18.92 | F6: 3 | G6: =F6/D6*100 -> 42.86 | H6: 0 | I6: 2 | J6: 4 | K6: 3 | L6: =(F6+J6)*100/D6 -> 100
B7: ECE | C7: 50 | D7: 32 | E7: 64.00 | F7: 25 | G7: 78.13 | H7: 0 | I7: 24 | J7: 7 | K7: 4 | L7: 100
B8: DBM | C8: 59 | D8: 31 | E8: 52.54 | F8: 11 | G8: 35.48 | H8: 3 | I8: 0 | J8: 19 | K8: 2 | L8: 97
B9: Comp. | C9: 108 | D9: 44 | E9: 40.74 | F9: =15+23 -> 38 | G9: 86.36 | H9: 2 | I9: 6 | J9: 6 | K9: 6 | L9: 100
B10: Arch. | C10: 56 | D10: 50 | E10: 89.29 | F10: 18 | G10: 36.00 | H10: 1 | I10: 2 | J10: 31 | K10: 6 | L10: 98
B11: F.D. | C11: 63 | D11: 36 | E11: 57.14 | F11: 12 | G11: 33.33 | H11: 0 | I11: 0 | J11: 23 | K11: 4 | L11: 97
B12: Total | C12: =SUM(C5:C11) -> 411 | D12: =SUM(D5:D11) -> 214 | E12: =D12/C12*100 -> 52.07 | F12: =SUM(F5:F11) -> 117 | G12: =AVERAGE(G5:G11) -> 54.80 | H12: =SUM(H5:H11) -> 6 | I12: =SUM(I5:I11) -> 43 | J12: =SUM(J5:J11) -> 94 | K12: =SUM(K5:K11) -> 31 | L12: =AVERAGE(L5:L11) -> 98.86
K17: TPO
K18: Govt. Polytechnic For Women
K19: Faridabad
